fUSD/lending_fUSD_20241004
["ID","MTS","AMOUNT","RATE_DAILY","PERIOD"]
[339851319,1728065447001,-500.0,0.0003863,120]
[339851320,1728065447010,-535.35,0.0003863,120]
[339851321,1728065447019,-1735.41,0.0003863,120]
[339851322,1728065447027,-500.0,0.0003863,120]
[339851323,1728065447037,-500.0,0.0003863,120]
[339851324,1728065447046,-854.2,0.0003863,120]
[339851325,1728065447055,-942.16,0.0003863,120]
[339851326,1728065447064,-1039.43,0.0003863,120]
[339851327,1728065447073,-500.0,0.0003863,120]
[339851328,1728065447082,-500.0,0.0003863,120]
[339851329,1728065447092,-1735.39,0.0003863,120]
[339851330,1728065447102,-766.65,0.0003863,120]
[339851331,1728065447111,-500.0,0.0003863,120]
[339851332,1728065447120,-500.0,0.0003863,120]
[339851333,1728065447130,-500.0,0.0003863,120]
[339851334,1728065447139,-500.0,0.0003863,120]
[339851335,1728065447148,-500.0,0.0003863,120]
[339851336,1728065447158,-500.0,0.0003863,120]
[339851337,1728065447168,-500.0,0.0003863,120]
[339851338,1728065447177,-500.0,0.0003863,120]
[339851339,1728065447187,-699.82,0.0003863,120]
[339851340,1728065447199,-206.82617081,0.0003863,120]
[339851341,1728065447210,-500.0,0.0003863,120]
[339851342,1728065447219,-664.54,0.0003863,120]
[339851343,1728065447228,-500.0,0.0003863,120]
[339851344,1728065447238,-1010.53,0.0003863,120]
[339851345,1728065447247,-500.0,0.0003863,120]
[339851346,1728065447257,-500.0,0.0003863,120]
[339851347,1728065447268,-500.0,0.0003863,120]
[339851348,1728065447277,-504.85,0.0003863,120]
[339851349,1728065447287,-1409.17,0.0003863,120]
[339851350,1728065447296,-500.0,0.0003863,120]
[339851351,1728065447307,-500.0,0.0003863,120]
[339851352,1728065447316,-1409.07,0.0003863,24]
[339851353,1728065447325,-500.0,0.0003863,120]
[339851354,1728065447337,-500.0,0.0003863,120]
[339851355,1728065447346,-500.0,0.0003863,120]
[339851356,1728065447354,-692.16,0.0003863,120]
[339851357,1728065447364,-500.0,0.0003863,120]
[339851358,1728065447375,-500.0,0.0003863,120]
[339851359,1728065447384,-2193.1,0.0003863,120]
[339851360,1728065447395,-500.0,0.0003863,120]
[339851361,1728065447404,-500.0,0.0003863,120]
[339851362,1728065447413,-500.0,0.0003863,120]
[339851363,1728065447423,-500.0,0.0003863,120]
[339851364,1728065447433,-500.0,0.0003863,120]
[339851365,1728065447442,-500.0,0.0003863,120]
[339851366,1728065447452,-731.81,0.0003863,120]
[339851367,1728065447461,-500.0,0.0003863,120]
[339851368,1728065447470,-500.0,0.0003863,120]
[339851369,1728065447480,-2826.56,0.0003863,120]
[339851370,1728065447489,-500.0,0.0003863,120]
[339851371,1728065447498,-600.65733104,0.0003863,120]
[339851372,1728065447507,-506.51,0.0003863,120]
[339851373,1728065447516,-500.0,0.0003863,120]
[339851374,1728065447525,-4041.95,0.0003863,120]
[339851375,1728065447534,-297.45284624,0.0003863,120]
[339851376,1728065447543,-500.0,0.0003863,120]
[339851377,1728065447553,-522.55,0.0003863,120]
[339851378,1728065447562,-1062.09,0.0003863,120]
[339851379,1728065447571,-500.0,0.0003863,120]
[339851380,1728065447580,-500.0,0.0003863,120]
[339851381,1728065447589,-500.0,0.0003863,120]
[339851382,1728065447598,-500.0,0.0003863,120]
[339851383,1728065447607,-500.0,0.0003863,120]
[339851384,1728065447616,-500.0,0.0003863,120]
[339851385,1728065447625,-5030.52,0.0003863,120]
[339851386,1728065447634,-500.0,0.0003863,120]
[339851387,1728065447645,-522.68,0.0003863,120]
[339851388,1728065447655,-972.45,0.0003863,120]
[339851389,1728065447664,-797.48,0.0003863,120]
[339851390,1728065447674,-500.0,0.0003863,120]
[339851391,1728065447683,-500.0,0.0003863,120]
[339851392,1728065447692,-500.0,0.0003863,120]
[339851393,1728065447701,-500.0,0.0003863,120]
[339851394,1728065447710,-2211.54,0.0003863,120]
[339851395,1728065447721,-1057.14,0.0003863,120]
[339851396,1728065447730,-500.0,0.0003863,120]
[339851397,1728065447739,-500.0,0.0003863,120]
[339851398,1728065447749,-500.0,0.0003863,120]
[339851399,1728065447758,-194.44543403,0.0003863,120]
[339851400,1728065447767,-500.0,0.0003863,120]
[339851401,1728065447776,-640.24,0.0003863,120]
[339851402,1728065447785,-2497.05,0.0003863,120]
[339851403,1728065447795,-500.0,0.0003863,120]
[339851404,1728065447804,-1153.27,0.0003863,120]
[339851405,1728065447813,-746.86,0.0003863,120]
[339851406,1728065447822,-500.0,0.0003863,120]
[339851407,1728065447832,-500.0,0.0003863,120]
[339851408,1728065447841,-500.0,0.0003863,120]
[339851409,1728065447851,-500.0,0.0003863,120]
[339851410,1728065447860,-500.0,0.0003863,120]
[339851411,1728065447870,-500.0,0.0003863,120]
[339851412,1728065447879,-897.88,0.0003863,120]
[339851413,1728065447890,-500.0,0.0003863,120]
[339851414,1728065447900,-500.0,0.0003863,120]
[339851415,1728065447909,-666.22,0.0003863,120]
[339851416,1728065447918,-500.0,0.0003863,120]
[339851417,1728065447928,-850.7,0.0003863,120]
[339851418,1728065447937,-941.28,0.0003863,120]
[339851419,1728065447946,-618.02,0.0003863,120]
[339851420,1728065447955,-1715.02,0.0003863,120]
[339851421,1728065447964,-500.0,0.0003863,120]
[339851422,1728065447973,-500.0,0.0003863,120]
[339851423,1728065447982,-500.0,0.0003863,120]
[339851424,1728065447991,-500.0,0.0003863,120]
[339851425,1728065448001,-561.92,0.0003863,120]
[339851426,1728065448011,-500.0,0.0003863,120]
[339851427,1728065448020,-500.0,0.0003863,120]
[339851428,1728065448029,-983.53,0.0003863,120]
[339851429,1728065448038,-500.0,0.0003863,120]
[339851430,1728065448047,-648.81,0.0003863,120]
[339851431,1728065448056,-500.0,0.0003863,120]
[339851432,1728065448066,-500.0,0.0003863,120]
[339851433,1728065448075,-1535.35,0.0003863,120]
[339851434,1728065448084,-500.0,0.0003863,120]
[339851435,1728065448094,-2758.95,0.0003863,120]
[339851436,1728065448103,-500.0,0.0003863,120]
[339851437,1728065448113,-500.0,0.0003863,120]
[339851438,1728065448122,-754.85,0.0003863,120]
[339851439,1728065448132,-1782.29,0.0003863,120]
[339851440,1728065448143,-500.0,0.0003863,120]
[339851441,1728065448153,-508.11,0.0003863,120]
[339851442,1728065448162,-500.0,0.0003863,120]
[339851443,1728065448171,-500.0,0.0003863,120]
[339851444,1728065448180,-3782.12,0.0003863,120]
[339851445,1728065448189,-500.0,0.0003863,120]
[339851446,1728065448199,-500.0,0.0003863,14]
[339851447,1728065448207,-500.0,0.0003863,120]
[339851448,1728065448217,-182.64150365,0.0003863,120]
[339851449,1728065448226,-578.19,0.0003863,120]
[339851450,1728065448235,-500.0,0.0003863,120]
[339851451,1728065448244,-500.0,0.0003863,120]
[339851452,1728065448253,-500.0,0.0003863,120]
[339851453,1728065448266,-500.0,0.0003863,120]
[339851454,1728065448275,-1816.15,0.0003863,120]
[339851455,1728065448284,-1113.85,0.0003863,120]
[339851456,1728065448294,-500.0,0.0003863,120]
[339851457,1728065448303,-500.0,0.0003863,120]
[339851458,1728065448312,-500.0,0.0003863,120]
[339851459,1728065448321,-500.0,0.0003863,120]
[339851460,1728065448331,-178.74,0.0003863,120]
[339851461,1728065448342,-500.0,0.0003863,120]
[339851462,1728065448351,-1065.84,0.0003863,120]
[339851463,1728065448360,-1978.43,0.0003863,120]
[339851464,1728065448369,-500.0,0.0003863,120]
[339851465,1728065448379,-500.0,0.0003863,120]
[339851466,1728065448388,-500.0,0.0003863,120]
[339851467,1728065448399,-500.0,0.0003863,120]
[339851468,1728065448408,-1254.72,0.0003863,120]
[339851469,1728065448417,-502.02038717,0.0003863,120]
[339851470,1728065448427,-500.0,0.0003863,120]
[339851471,1728065448437,-658.24,0.0003863,120]
[339851472,1728065448446,-500.0,0.0003863,120]
[339851473,1728065448620,-500.0,0.0003863,120]
[339851474,1728065448631,-817.61,0.0003863,120]
[339851475,1728065448642,-806.64,0.0003863,120]
[339851476,1728065448652,-500.0,0.0003863,120]
[339851477,1728065448662,-912.42,0.0003863,120]
[339851478,1728065448671,-500.0,0.0003863,120]
[339851479,1728065448681,-502.24624555,0.0003863,120]
[339851480,1728065448690,-2402.24,0.0003863,120]
[339851481,1728065448700,-500.0,0.0003863,120]
[339851482,1728065448710,-500.0,0.0003863,120]
[339851483,1728065448719,-531.41,0.0003863,120]
[339851484,1728065448729,-231.47582443,0.0003863,120]
[339851485,1728065448739,-2285.63,0.0003863,120]
[339851486,1728065448748,-500.0,0.0003863,120]
[339851487,1728065448758,-500.0,0.0003863,120]
[339851488,1728065448767,-500.0,0.0003863,120]
[339851489,1728065448778,-521.08,0.0003863,120]
[339851490,1728065448788,-500.0,0.0003863,120]
[339851491,1728065448797,-898.0,0.0003863,120]
[339851492,1728065448807,-500.0,0.0003863,120]
[339851493,1728065448816,-500.0,0.0003863,120]
[339851494,1728065448826,-500.0,0.0003863,120]
[339851495,1728065448836,-500.0,0.0003863,120]
[339851496,1728065448845,-500.0,0.0003863,120]
[339851497,1728065448854,-500.0,0.0003863,120]
[339851498,1728065448864,-2625.16,0.0003863,120]
[339851499,1728065448873,-606.09,0.0003863,120]
[339851500,1728065448883,-500.0,0.0003863,120]
[339851501,1728065448893,-500.0,0.0003863,120]
[339851502,1728065448903,-679.76,0.0003863,120]
[339851503,1728065448912,-3802.18,0.0003863,120]
[339851504,1728065448922,-500.0,0.0003863,120]
[339851505,1728065448931,-500.0,0.0003863,120]
[339851506,1728065448941,-500.0,0.0003863,120]
[339851507,1728065448951,-500.0,0.0003863,120]
[339851508,1728065448961,-500.0,0.0003863,120]
[339851509,1728065448971,-500.0,0.0003863,120]
[339851510,1728065448982,-1124.58,0.0003863,120]
[339851511,1728065448991,-500.0,0.0003863,120]
[339851512,1728065449001,-776.82,0.0003863,120]
[339851513,1728065449010,-500.0,0.0003863,120]
[339851514,1728065449020,-500.0,0.0003863,120]
[339851515,1728065449029,-770.62,0.0003863,120]
[339851516,1728065449039,-500.0,0.0003863,120]
[339851517,1728065449048,-500.0,0.0003863,120]
[339851518,1728065449058,-830.11,0.0003863,120]
[339851519,1728065449068,-500.0,0.0003863,120]
[339851520,1728065449078,-500.0,0.0003863,7]
[339851521,1728065449087,-500.0,0.0003863,120]
[339851522,1728065449097,-429.45,0.0003863,120]
[339851523,1728065449107,-500.0,0.0003863,120]
[339851524,1728065449116,-500.0,0.0003863,120]
[339851525,1728065449126,-510.19,0.0003863,120]
[339851526,1728065449136,-2054.46,0.0003863,120]
[339851527,1728065449146,-500.0,0.0003863,120]
[339851528,1728065449156,-500.0,0.0003863,120]
[339851529,1728065449165,-500.0,0.0003863,120]
[339851530,1728065449175,-500.0,0.0003863,120]
[339851531,1728065449184,-1934.79,0.0003863,120]
[339851532,1728065449195,-500.0,0.0003863,120]
[339851533,1728065449204,-500.0,0.0003863,120]
[339851534,1728065449214,-241.8872451,0.0003863,120]
[339851535,1728065449224,-500.0,0.0003863,120]
[339851536,1728065449233,-847.51,0.0003863,120]
[339851537,1728065449243,-500.0,0.0003863,120]
[339851538,1728065449253,-500.0,0.0003863,120]
[339851539,1728065449267,-500.0,0.0003863,120]
[339851540,1728065449276,-500.0,0.0003863,120]
[339851541,1728065449286,-500.0,0.0003863,120]
[339851542,1728065449295,-500.0,0.0003863,120]
[339851543,1728065449305,-500.0,0.0003863,120]
[339851544,1728065449314,-500.0,0.0003863,120]
[339851545,1728065449324,-513.38,0.0003863,120]
[339851546,1728065449334,-500.0,0.0003863,120]
[339851547,1728065449344,-2444.29,0.0003863,120]
[339851548,1728065449354,-3477.39,0.0003863,120]
[339851549,1728065449363,-500.0,0.0003863,120]
[339851550,1728065449373,-537.54,0.0003863,120]
[339851551,1728065449382,-3856.18,0.0003863,120]
[339851552,1728065449391,-629.02,0.0003863,120]
[339851553,1728065449401,-500.0,0.0003863,120]
[339851554,1728065449411,-500.0,0.0003863,120]
[339851555,1728065449420,-735.8,0.0003863,120]
[339851556,1728065449430,-842.94,0.0003863,120]
[339851557,1728065449439,-500.0,0.0003863,120]
[339851558,1728065449448,-500.0,0.0003863,120]
[339851559,1728065449458,-500.0,0.0003863,120]
[339851560,1728065449467,-500.0,0.0003863,120]
[339851561,1728065449476,-500.0,0.0003863,120]
[339851562,1728065449485,-500.0,0.0003863,120]
[339851563,1728065449495,-779.14,0.0003863,120]
[339851564,1728065449505,-500.0,0.0003863,120]
[339851565,1728065449514,-534.98,0.0003863,120]
[339851566,1728065449524,-385.16693817,0.0003863,120]
[339851567,1728065449533,-500.0,0.0003863,120]
[339851568,1728065449543,-500.0,0.0003863,120]
[339851569,1728065449552,-1224.04,0.0003863,120]
[339851570,1728065449561,-510.67,0.0003863,120]
[339851571,1728065449570,-500.0,0.0003863,120]
[339851572,1728065449579,-500.0,0.0003863,120]
[339851573,1728065449589,-929.02,0.0003863,120]
[339851574,1728065449598,-500.0,0.0003863,120]
[339851575,1728065449608,-500.0,0.0003863,120]
[339851576,1728065449617,-800.28,0.0003863,120]
[339851577,1728065449626,-296.91,0.0003863,120]
[339851578,1728065449636,-783.86,0.0003863,120]
[339851579,1728065449646,-503.46,0.0003863,120]
[339851580,1728065449656,-500.0,0.0003863,120]
[339851581,1728065449665,-500.0,0.0003863,120]
[339851582,1728065449675,-500.0,0.0003863,120]
[339851583,1728065449684,-652.36,0.0003863,120]
[339851584,1728065449694,-534.69,0.0003863,120]
[339851585,1728065449703,-754.33,0.0003863,120]
[339851586,1728065449712,-500.0,0.0003863,120]
[339851587,1728065449722,-556.49,0.0003863,21]
[339851588,1728065449732,-2470.31,0.0003863,120]
[339851589,1728065449741,-500.0,0.0003863,120]
[339851590,1728065449750,-500.0,0.0003863,120]
[339851591,1728065449760,-639.19,0.0003863,120]
[339851592,1728065449770,-500.0,0.0003863,120]
[339851593,1728065449779,-1759.36,0.0003863,120]
[339851594,1728065449788,-500.0,0.0003863,120]
[339851595,1728065449797,-500.0,0.0003863,120]
[339851596,1728065449806,-500.0,0.0003863,120]
[339851597,1728065449816,-500.0,0.0003863,120]
[339851598,1728065449827,-611.19,0.0003863,120]
[339851599,1728065449838,-605.45,0.0003863,120]
[339851600,1728065449848,-500.0,0.0003863,120]
[339851601,1728065449857,-500.0,0.0003863,120]
[339851602,1728065449866,-500.0,0.0003863,120]
[339851603,1728065449876,-697.46,0.0003863,120]
[339851604,1728065449885,-500.0,0.0003863,120]
[339851605,1728065449895,-500.0,0.0003863,120]
[339851606,1728065449904,-1549.44,0.0003863,120]
[339851607,1728065449914,-500.0,0.0003863,120]
[339851608,1728065449924,-1261.96,0.0003863,120]
[339851609,1728065449934,-500.0,0.0003863,120]
[339851610,1728065449943,-508.75,0.0003863,120]
[339851611,1728065449953,-500.0,0.0003863,120]
[339851612,1728065449963,-500.0,0.0003863,120]
[339851613,1728065449972,-500.0,0.0003863,120]
[339851614,1728065449981,-500.0,0.0003863,120]
[339851615,1728065449992,-1508.94,0.0003863,120]
[339851616,1728065450002,-630.69,0.0003863,120]
[339851617,1728065450011,-500.0,0.0003863,120]
[339851618,1728065450021,-749.65,0.0003863,120]
[339851619,1728065450030,-500.0,0.0003863,120]
[339851620,1728065450041,-667.17,0.0003863,120]
[339851621,1728065450051,-500.0,0.0003863,120]
[339851622,1728065450061,-839.09,0.0003863,120]
[339851623,1728065450070,-553.07,0.0003863,120]
[339851624,1728065450080,-500.0,0.0003863,120]
[339851625,1728065450089,-500.0,0.0003863,120]
[339851626,1728065450099,-966.32,0.0003863,120]
[339851627,1728065450108,-500.0,0.0003863,120]
[339851628,1728065450118,-500.0,0.0003863,120]
[339851629,1728065450128,-603.61,0.0003863,120]
[339851630,1728065450137,-500.0,0.0003863,120]
[339851631,1728065450149,-500.0,0.0003863,120]
[339851632,1728065450159,-500.0,0.0003863,120]
[339851633,1728065450168,-672.73,0.0003863,120]
[339851634,1728065450177,-762.57,0.0003863,120]
[339851635,1728065450186,-500.0,0.0003863,120]
[339851636,1728065450196,-500.0,0.0003863,120]
[339851637,1728065450206,-500.0,0.0003863,120]
[339851638,1728065450216,-500.0,0.0003863,120]
[339851639,1728065450225,-546.7,0.0003863,120]
[339851640,1728065450234,-500.0,0.0003863,120]
[339851641,1728065450243,-500.0,0.0003863,120]
[339851642,1728065450253,-500.0,0.0003863,120]
[339851643,1728065450264,-500.0,0.0003863,120]
[339851644,1728065450273,-500.0,0.0003863,120]
[339851645,1728065450282,-1060.49,0.0003863,120]
[339851646,1728065450292,-1526.7,0.0003863,120]
[339851647,1728065450301,-500.0,0.0003863,120]
[339851648,1728065450310,-525.74,0.0003863,120]
[339851649,1728065450319,-500.0,0.0003863,120]
[339851650,1728065450329,-166.05,0.0003863,120]
[339851651,1728065450340,-500.0,0.0003863,120]
[339851652,1728065450349,-500.0,0.0003863,120]
[339851653,1728065450359,-500.0,0.0003863,120]
[339851654,1728065450368,-763.33,0.0003863,120]
[339851655,1728065450378,-500.0,0.0003863,120]
[339851656,1728065450387,-660.05,0.0003863,120]
[339851657,1728065450398,-500.0,0.0003863,120]
[339851658,1728065450408,-500.0,0.0003863,120]
[339851659,1728065450418,-1785.61,0.0003863,120]
[339851660,1728065450429,-500.0,0.0003863,120]
[339851661,1728065450439,-541.24,0.0003863,120]
[339851662,1728065450448,-500.0,0.0003863,120]
[339851663,1728065450457,-500.0,0.0003863,120]
[339851664,1728065450466,-912.37,0.0003863,120]
[339851665,1728065450475,-701.78,0.0003863,120]
[339851666,1728065450485,-500.0,0.0003863,120]
[339851667,1728065450496,-500.0,0.0003863,120]
[339851668,1728065450505,-500.0,0.0003863,120]
[339851669,1728065450514,-500.0,0.0003863,120]
[339851670,1728065450523,-500.0,0.00038673,5]
[339851671,1728065450532,-500.0,0.00038673,2]
[339851672,1728065450542,-1200.0,0.000387,14]
[339851673,1728065450551,-5612.8841597,0.00038741,15]
[339851674,1728065450562,-205.94,0.00038757,2]
[339851675,1728065450571,-1800.0,0.000388,14]
[339851676,1728065450581,-500.0,0.00038884,120]
[339851677,1728065450590,-2400.0,0.000389,14]
[339851678,1728065450602,-500.0,0.00038903,120]
[339851679,1728065450612,-300.0,0.00038903,30]
[339851680,1728065450623,-300.0,0.00038903,30]
[339851681,1728065450633,-300.0,0.00038903,30]
[339851682,1728065450643,-500.0,0.00038904,120]
[339851683,1728065450653,-176.16804928,0.00038904,120]
[339851684,1728065450663,-310.93218586,0.00038904,120]
[339851685,1728065450673,-500.0,0.00038904,120]
[339851686,1728065450682,-500.0,0.00038904,120]
[339851687,1728065450691,-684.41,0.00038904,120]
[339851688,1728065450701,-500.0,0.00038904,120]
[339851689,1728065450710,-500.0,0.00038904,120]
[339851690,1728065450719,-500.0,0.00038904,120]
[339851691,1728065450729,-500.0,0.00038904,120]
[339851692,1728065450738,-500.0,0.00038904,120]
[339851693,1728065450748,-500.0,0.00038904,120]
[339851694,1728065450757,-500.0,0.00038904,120]
[339851695,1728065450766,-500.0,0.00038904,120]
[339851696,1728065450775,-500.0,0.00038904,120]
[339851697,1728065450784,-500.0,0.00038904,120]
[339851698,1728065450794,-500.0,0.00038904,120]
[339851699,1728065450803,-500.0,0.00038904,120]
[339851700,1728065450812,-500.0,0.00038904,120]
[339851701,1728065450821,-697.17,0.00038904,120]
[339851702,1728065450830,-500.0,0.00038904,120]
[339851703,1728065450839,-500.0,0.00038904,120]
[339851704,1728065450850,-500.0,0.00038904,120]
[339851705,1728065450859,-537.93,0.00038904,120]
[339851706,1728065450868,-500.0,0.00038904,120]
[339851707,1728065450878,-500.0,0.00038904,120]
[339851708,1728065450887,-500.0,0.00038904,120]
[339851709,1728065450897,-500.0,0.00038904,120]
[339851710,1728065450906,-500.0,0.00038904,120]
[339851711,1728065450915,-554.53,0.00038904,120]
[339851712,1728065450925,-500.0,0.00038904,120]
[339851713,1728065450934,-500.0,0.00038904,120]
[339851714,1728065450943,-500.0,0.00038904,120]
[339851715,1728065451002,-500.0,0.00038904,120]
[339851716,1728065451012,-500.0,0.00038904,120]
[339851717,1728065451022,-590.22620931,0.00038904,120]
[339851718,1728065451031,-500.0,0.00038904,120]
[339851719,1728065451041,-500.0,0.00038904,120]
[339851720,1728065451051,-654.59,0.00038904,120]
[339851721,1728065451060,-500.0,0.00038904,120]
[339851722,1728065451069,-500.0,0.00038904,120]
[339851723,1728065451079,-500.0,0.00038904,120]
[339851724,1728065451088,-500.0,0.00038904,120]
[339851725,1728065451097,-510.03677354,0.00038904,120]
[339851726,1728065451106,-500.0,0.00038904,120]
[339851727,1728065451116,-573.35,0.00038904,120]
[339851728,1728065451125,-500.0,0.00038904,120]
[339851729,1728065451135,-183.63660467,0.00038904,120]
[339851730,1728065451144,-500.0,0.00038904,120]
[339851731,1728065451153,-500.0,0.00038904,120]
[339851732,1728065451164,-500.0,0.00038904,120]
[339851733,1728065451173,-500.0,0.00038904,120]
[339851734,1728065451183,-611.43843836,0.00038904,120]
[339851735,1728065451193,-645.79,0.00038904,120]
[339851736,1728065451202,-518.75,0.00038904,120]
[339851737,1728065451211,-500.0,0.00038904,120]
[339851738,1728065451221,-500.0,0.00038904,120]
[339851739,1728065451230,-500.0,0.00038904,120]
[339851740,1728065451240,-500.0,0.00038904,120]
[339851741,1728065451249,-500.0,0.00038904,120]
[339851742,1728065451258,-1314.16,0.00038904,120]
[339851743,1728065451271,-853.79,0.00038904,120]
[339851744,1728065451280,-500.0,0.00038904,120]
[339851745,1728065451289,-500.0,0.00038904,120]
[339851746,1728065451299,-500.0,0.00038904,120]
[339851747,1728065451309,-500.0,0.00038904,120]
[339851748,1728065451321,-500.0,0.00038904,120]
[339851749,1728065451331,-500.0,0.00038904,120]
[339851750,1728065451341,-500.0,0.00038904,120]
[339851751,1728065451351,-500.0,0.00038904,120]
[339851752,1728065451360,-500.0,0.00038904,120]
[339851753,1728065451370,-500.0,0.00038904,120]
[339851754,1728065451379,-500.0,0.00038904,120]
[339851755,1728065451388,-500.0,0.00038904,120]
[339851756,1728065451404,-500.0,0.00038904,120]
[339851757,1728065451414,-500.0,0.00038904,120]
[339851758,1728065451423,-634.51,0.00038904,120]
[339851759,1728065451432,-500.0,0.00038904,120]
[339851760,1728065451442,-500.0,0.00038904,120]
[339851761,1728065451451,-500.0,0.00038904,120]
[339851762,1728065451460,-500.0,0.00038904,120]
[339851763,1728065451469,-500.0,0.00038904,120]
[339851764,1728065451478,-500.0,0.00038904,120]
[339851765,1728065451488,-500.0,0.00038904,120]
[339851766,1728065451497,-500.0,0.00038904,120]
[339851767,1728065451506,-334.0991081,0.00038904,120]
[339851768,1728065451515,-500.0,0.00038904,120]
[339851769,1728065451525,-500.0,0.00038904,120]
[339851770,1728065451534,-500.0,0.00038904,120]
[339851771,1728065451543,-500.0,0.00038904,120]
[339851772,1728065451552,-500.0,0.00038904,120]
[339851773,1728065451562,-150.0,0.00038904,120]
[339851774,1728065451571,-500.0,0.00038904,120]
[339851775,1728065451581,-878.88,0.00038904,120]
[339851776,1728065451590,-500.0,0.00038904,120]
[339851777,1728065451599,-500.0,0.00038904,120]
[339851778,1728065451609,-500.0,0.00038904,120]
[339851779,1728065451618,-1064.86,0.00038904,120]
[339851780,1728065451628,-500.0,0.00038904,120]
[339851781,1728065451637,-500.0,0.00038904,120]
[339851782,1728065451646,-500.0,0.00038904,120]
[339851783,1728065451656,-500.0,0.00038904,120]
[339851784,1728065451666,-500.0,0.00038904,120]
[339851785,1728065451675,-500.0,0.00038904,120]
[339851786,1728065451684,-677.15,0.00038904,120]
[339851787,1728065451693,-500.83,0.00038904,120]
[339851788,1728065451703,-500.0,0.00038904,120]
[339851789,1728065451713,-500.0,0.00038904,7]
[339851790,1728065451722,-500.0,0.00038904,120]
[339851791,1728065451731,-500.0,0.00038904,120]
[339851792,1728065451741,-1046.35,0.00038904,120]
[339851793,1728065451751,-500.0,0.00038904,120]
[339851794,1728065451759,-2441.48,0.00038904,120]
[339851795,1728065451769,-500.0,0.00038904,120]
[339851796,1728065451778,-500.0,0.00038904,120]
[339851797,1728065451788,-1051.83,0.00038904,120]
[339851798,1728065451797,-500.0,0.00038904,120]
[339851799,1728065451806,-1079.73,0.00038904,120]
[339851800,1728065451815,-500.0,0.00038904,120]
[339851801,1728065451824,-500.0,0.00038904,120]
[339851802,1728065451834,-515.94,0.00038904,120]
[339851803,1728065451843,-500.0,0.00038904,120]
[339851804,1728065451853,-500.0,0.00038904,120]
[339851805,1728065451862,-500.0,0.00038904,120]
[339851806,1728065451875,-556.84,0.00038904,120]
[339851807,1728065451884,-500.0,0.00038904,120]
[339851808,1728065451894,-500.0,0.00038904,120]
[339851809,1728065451905,-500.0,0.00038904,120]
[339851810,1728065451915,-500.0,0.00038904,120]
[339851811,1728065451925,-500.0,0.00038904,120]
[339851812,1728065451934,-1524.73,0.00038904,120]
[339851813,1728065451944,-500.0,0.00038904,120]
[339851814,1728065451953,-500.0,0.00038904,120]
[339851815,1728065451963,-387.95218323,0.00038904,120]
[339851816,1728065451972,-500.0,0.00038904,120]
[339851817,1728065451982,-500.0,0.00038904,120]
[339851818,1728065451991,-697.42,0.00038904,120]